Cogmind - Beta 15 @@@ ROGUE MODE // 2025.05.24 @ 18:26:18 Player: celerysam Result: Destroyed by Shrapnel Trap Performance ------------- Evolutions (0) 0 Regions Visited (2) 400 Robots Destroyed (19) 95 Value Destroyed (494) 494 Prototype IDs (0) 0 Alien Tech Used (0) 0 Bonus (0) 0 TOTAL SCORE: 989 Bonus ------- None Cogmind --------- Core Integrity 0/250 Matter 272/300 Energy 248/250 System Corruption 0% Temperature Cool (0) Movement Rolling (105) Location -10/Subcaves Parts ------- > --- POWER (1) -------- Ion Engine > --- PROPULSION (2) --- Compact Wheel Subdweller Monowheel > --- UTILITY (2) ------ Large Storage Unit Machine Analyzer > --- WEAPON (2) ------- Subdweller Beam Cannon Makeshift Axe > --- INVENTORY (15) --- Ion Engine Light Treads Light Treads Wheel Wheel Wheel Heat Sink Small Storage Unit Terrain Scanner Seismic Detector ECM Suite Subdweller Laser Light Assault Rifle Light Assault Rifle Mining Laser Peak State ------------ > --- POWER ------------ Ion Engine > --- PROPULSION ------- Compact Wheel Subdweller Monowheel > --- UTILITY ---------- Large Storage Unit Machine Analyzer > --- WEAPON ----------- Subdweller Beam Cannon Makeshift Axe > --- INVENTORY -------- Ion Engine Light Treads Light Treads Wheel Wheel Wheel Heat Sink Small Storage Unit Terrain Scanner Seismic Detector ECM Suite Subdweller Laser Light Assault Rifle Light Assault Rifle Mining Laser [Rating: 15] Favorites ----------- Power Ion Engine Engine Ion Engine Propulsion Light Treads Treads Light Treads Leg Aluminum Leg Wheel Wheel Utility Large Storage Unit Device Heat Sink Storage Large Storage Unit Processor Machine Analyzer Weapon Assault Rifle Energy Gun Particle Gun Energy Cannon Subdweller Beam Cannon Ballistic Gun Assault Rifle Special Weapon Mining Laser Slashing Weapon Makeshift Axe Build | -11 -10 -10 ------- Run | Yrd Mat Sub Slots Evolved . | . . . Power . | . . . Propulsion . | . . . Utility . | . . . Weapon . | . . . Parts Attached 24 | 7 8 9 Power 3 | 1 1 1 Engine 3 | 1 1 1 Core . | . . . Reactor . | . . . Propulsion 9 | 2 4 3 Treads 2 | . 2 . Leg 2 | 2 . . Wheel 5 | . 2 3 Hover . | . . . Flight . | . . . Utility 4 | 1 2 1 Device 1 | . 1 . Storage 2 | 1 1 . Processor 1 | . . 1 Hackware . | . . . Protection . | . . . Artifact . | . . . Weapon 8 | 3 1 4 Energy Gun 2 | 1 1 . Energy Cannon 1 | . . 1 Ballistic Gun 3 | 2 . 1 Ballistic Cannon . | . . . Launcher . | . . . Special Weapon 1 | . . 1 Impact Weapon . | . . . Slashing Weapon 1 | . . 1 Piercing Weapon . | . . . Special Melee Weapon . | . . . Unidentified Prototypes . | . . . Parts Lost 8 | . 4 4 Power 2 | . 1 1 Propulsion 3 | . 2 1 Utility . | . . . Weapon 3 | . 1 2 Highest Loss Streak 3 | . 2 3 To Critical Strikes . | . . . Average Backups 12 | 4 10 14 Power 1 | 1 1 1 Propulsion 3 | 3 3 4 Utility 3 | . 2 4 Weapon 3 | . 3 4 Tool/Special . | . . . Unused Backups 12 | . 1 11 Power 1 | . . 1 Propulsion 5 | . . 5 Utility 4 | . 1 3 Weapon 2 | . . 2 Tool/Special . | . . . Average Slot Usage (%) 90 | . 87 94 Engine 13 | . 13 13 Treads 10 | . 15 5 Wheel 14 | . 6 22 Device 7 | . 11 4 Storage 14 | . 14 14 Processor 4 | . . 9 Energy Gun 10 | . 9 12 Energy Cannon 1 | . . 3 Ballistic Gun 9 | . 14 3 Special Weapon 1 | . . 3 Peak Build Rating 15 | 6 9 15 Average Rating 8 | 3 7 11 On Entrance 5 | . 6 9 Naked Turns . | . . . Heaviest Build 36 | 14 31 36 Greatest Support 40 | 20 40 40 Greatest Overweight (x) 9 | . 9 1 Average Overweight (x) . | . . . Largest Inventory Capacity 15 | 8 15 15 Average Capacity 14 | 6 14 15 Most Carried 15 | 7 14 15 Average Carried 12 | 4 10 14 Final Capacity 15 | 8 15 15 Final Carried 15 | 6 13 15 Class Distribution -------------------- 63% | Mutant 36% | Scavenger-Mutant Dominant Class ---------------- Mutant | -10/Materials Scavenger-Mutant | -10/Subcaves Resources | -11 -10 -10 ----------- Run | Yrd Mat Sub Matter Collected 565 | 235 196 134 Remotely . | . . . Salvage Created 552 | . 296 256 Parts 45 | . 24 21 Haulers Intercepted . | . . . Recyclers Shooed . | . . . Parts Field Recycled . | . . . Retrieved Matter . | . . . Parts Self-Destructed 11 | . . 11 Prevented . | . . . Kills | -11 -10 -10 ------- Run | Yrd Mat Sub Combat Hostiles Destroyed 18 | . 11 7 Guns 16 | . 11 5 Cannons 1 | . . 1 Classes Destroyed 4 | . 3 1 Worker 1 | . 1 . Swarmer 7 | . 6 1 Grunt 5 | . 5 . Subdweller 6 | . . 6 Best Kill Streak 6 | . 6 2 Combat Bots Only 6 | . 6 2 Max Kills in Single Turn 2 | . 2 1 Gunslinging 1 | . 1 . Exploded . | . . . Melee . | . . . Uniques/NPCs Destroyed . | . . . Combat | -11 -10 -10 -------- Run | Yrd Mat Sub Hostile Shots Fired 125 | . 66 59 Missed 43 | . 14 29 Hits 82 | . 52 30 Projectile 82 | . 52 30 Critical Strikes 1 | . . 1 Damage Taken 1199 | . 478 721 Core 257 | . 96 161 Absorbed by Shields . | . . . Core Remaining (%) 100 | 100 . . Volleys Fired 88 | . 43 45 Largest 2 | . 2 2 Hottest 145 | . 85 145 Shots Fired 142 | . 76 66 Gun 125 | . 76 49 Cannon 9 | . . 9 Launcher . | . . . Special 8 | . . 8 Kinetic 59 | . 43 16 Thermal 83 | . 33 50 Explosive . | . . . Electromagnetic . | . . . Robot Hit Streak 12 | . 12 9 Robot Miss Streak 4 | . 4 4 Penetration Max . | . . . Secondary Targets 4 | . 3 1 Max Gunslinging Chain 1 | . 1 1 Shots Hit Robots 82 | . 39 43 Core Hits 27 | . 17 10 Critical Kills 1 | . . 1 Critical Parts Destroyed 1 | . 1 . Critical Strikes 3 | . 1 2 Burn 1 | . . 1 Meltdown 1 | . . 1 Destroy 1 | . 1 . Melee Attacks 7 | . . 7 Impact . | . . . Slashing 7 | . . 7 Piercing . | . . . Sneak Attacks . | . . . Combat Hostiles . | . . . Follow-up Attacks . | . . . Damage Inflicted 1224 | . 533 691 Guns 1083 | . 533 550 Cannons 141 | . . 141 Explosions . | . . . Melee . | . . . Ramming . | . . . Kinetic 441 | . 284 157 Thermal 783 | . 249 534 Explosive . | . . . Electromagnetic . | . . . Impact . | . . . Slashing . | . . . Piercing . | . . . Highest Corruption . | . . . Average Corruption . | . . . Corruption Purged . | . . . Corruption Blocked . | . . . Overload Shots . | . . . Overflow Damage . | . . . Projectiles . | . . . Explosions . | . . . Melee . | . . . Knockbacks . | . . . Impact . | . . . Kinetic . | . . . Secondary . | . . . Self-Inflicted Damage . | . . . Shots . | . . . Rammed . | . . . Targets Rammed . | . . . Kicked . | . . . Crushed . | . . . Highest Temperature 81 | . 81 48 Average Temperature 29 | . 35 18 Received Heat Transfer 288 | . 120 168 Siege Activations . | . . . Martial Activations . | . . . Shielding Activations . | . . . Robots Disrupted . | . . . Combat Hostiles . | . . . Robots Corrupted . | . . . Combat Hostiles . | . . . Parts Fried . | . . . Impact Corruptions . | . . . Robots Melted 1 | . . 1 Combat Hostiles 1 | . . 1 Parts Melted 5 | . 3 2 Heat Transferred 1887 | . 703 1184 Parts Sabotaged . | . . . Parts Stolen . | . . . Parts Stripped . | . . . Power Chain Reactions . | . . . Alert | -11 -10 -10 ------- Run | Yrd Mat Sub Maximum Alert Level . | . . . Low Security (%) 100 | 100 100 . Level 1 . | . . . Level 2 . | . . . Level 3 . | . . . Level 4 . | . . . Level 5 . | . . . High Security . | . . . Max Security . | . . . Peak Influence 171 | . 171 . Initial . | . . . Average 82 | . 89 . Influence Increases 351 | . 306 45 Destroy 0b10 Robot/C 240 | . 220 20 Destroy 0b10 Robot/NC 5 | . 5 . Destroy Leader 60 | . 50 10 Destroy Structure 1 | . 1 . Lose Combat Pursuer 45 | . 30 15 Influence Decreases 351 | . 294 57 Entered New Map 7 | . . 7 Time Decay 314 | . 264 50 Lost Part 30 | . 30 . Squads Dispatched 2 | . 2 . Investigation 2 | . 2 . Extermination . | . . . Reinforcement . | . . . Assault . | . . . Garrison . | . . . Intercept . | . . . Searches Triggered . | . . . Construction Impeded . | . . . Haulers Reinforced . | . . . Active Scanning Responses . | . . . Cargo Convoy Interrupts . | . . . Stealth | -11 -10 -10 --------- Run | Yrd Mat Sub Distress Signals . | . . . Communications Jammed . | . . . Distress Signals . | . . . Times Spotted 31 | . 21 10 Peak Tracking Total 6 | . 6 2 Tactical Retreats 2 | . 1 1 Traps | -11 -10 -10 ------- Run | Yrd Mat Sub Traps Triggered 3 | . 2 1 Indirectly . | . . . Trap Hack Attempts . | . . . Triggered . | . . . Disarmed . | . . . Reprogrammed . | . . . Reused . | . . . Traps Extracted . | . . . Installed . | . . . Triggered . | . . . Machines | -11 -10 -10 ---------- Run | Yrd Mat Sub Machines Disabled . | . . . Max in Single Turn . | . . . Machines Repaired . | . . . Machines Dismantled . | . . . Machines Sabotaged . | . . . Overloaded Fab Kills . | . . . Hacking | -11 -10 -10 --------- Run | Yrd Mat Sub Machines Accessed 2 | . 2 . Terminals . | . . . Fabricators . | . . . Repair Stations . | . . . Recycling Units 2 | . 2 . Scanalyzers . | . . . Garrison Access . | . . . Total Hacks 2 | . 2 . Successful 2 | . 2 . Failed . | . . . Catastrophic . | . . . Database Lockouts . | . . . Manual . | . . . Terminals . | . . . Fabricators . | . . . Repair Stations . | . . . Recycling Units 2 | . 2 . Scanalyzers . | . . . Garrison Access . | . . . Terminal Hacks . | . . . Fabricator Hacks . | . . . Repair Station Hacks . | . . . Recycling Unit Hacks 2 | . 2 . Report Inventory 2 | . 2 . Scanalyzer . | . . . Garrison Access Hacks . | . . . Unauthorized Hacks . | . . . Terminals . | . . . Fabricators . | . . . Repair Stations . | . . . Recycling Units . | . . . Scanalyzers . | . . . Garrison Access . | . . . Data Cores Recovered . | . . . Used . | . . . Hacking Detections . | . . . Full Trace Events . | . . . Feedback Events . | . . . Feedback Blocked . | . . . Robot Schematics Acquired . | . . . Robots Built . | . . . Authchips . | . . . Time . | . . . Total Robot Build Rating . | . . . Part Schematics Acquired . | . . . Parts Built . | . . . Authchips . | . . . Time . | . . . Total Part Build Rating . | . . . Parts Repaired . | . . . Time . | . . . Parts Recycled . | . . . Recycled Matter . | . . . Retrieved Matter . | . . . Retrieved Components . | . . . Parts Scanalyzed . | . . . Part Schematics Acquired . | . . . Parts Damaged . | . . . Bothacking | -11 -10 -10 ------------ Run | Yrd Mat Sub Used RIF Installer . | . . . Robots Hacked . | . . . Non-combat . | . . . Combat . | . . . Robot Hacks Applied . | . . . Relay Couplers Released . | . . . Fabnet Peak Effective % . | . . . Robots Rewired . | . . . Allies Hacked . | . . . Hacks Repelled . | . . . Allies | -11 -10 -10 -------- Run | Yrd Mat Sub Total Allies . | . . . Largest Group . | . . . Highest-Rated Group . | . . . Highest-Rated Ally . | . . . Total Orders . | . . . Ally Attacks . | . . . Total Damage . | . . . Kills . | . . . Allies Corrupted . | . . . Allies Melted . | . . . Intel | -11 -10 -10 ------- Run | Yrd Mat Sub Active Infowar (turns) 403 | . . 403 Machine Analysis 403 | . . 403 Robot Analysis Total . | . . . Derelict Logs Recovered . | . . . Drone Launches . | . . . Drone Recoveries . | . . . Exploration | -11 -10 -10 ------------- Run | Yrd Mat Sub Turns Passed 1261 | 55 641 565 Spaces Moved 752 | 41 326 385 Core 16 | 15 1 . Treads 204 | . 174 30 Legs 31 | 26 5 . Wheels 501 | . 146 355 Hover . | . . . Flight . | . . . Fastest Speed 50 | 50 105 95 Average Speed 117 | 94 137 102 Slowest Speed 500 | 120 500 160 Overloaded Moves . | . . . Propulsion Burnouts . | . . . Robots Hopped . | . . . Potential Cave-ins . | . . . Cave-ins Triggered . | . . . Exploration Rate (%) 35 | 3 76 26 Regions Visited 2 Branch Regions 1 Pre-discovered Areas 1 | . . 1 Known Exits Taken . | . . . Unknown Exits Taken 2 | 1 1 . Scrap Searched . | . . . Spaces Dug . | . . . Terrain Destroyed 2 | . . 2 Melee . | . . . Projectile 2 | . . 2 AOE . | . . . Terrain Rammed . | . . . Walls Destroyed . | . . . Machines Disabled . | . . . Actions | -11 -10 -10 --------- Run | Yrd Mat Sub Total 969 | 54 443 472 Wait 57 | . 52 5 Move 750 | 40 325 385 Hop . | . . . Pick Up 32 | 7 13 12 Fast Attach 6 | 5 . 1 Attach 10 | 1 6 3 Detach 1 | . 1 . Swap 9 | 1 2 6 Drop 9 | . 1 8 Fire 88 | . 43 45 Melee 7 | . . 7 Ram . | . . . Kick . | . . . Crush . | . . . Escape Stasis . | . . . Rewire . | . . . Trap . | . . . Miscellaneous . | . . . Route ------- -11/Scrapyard -10/Materials (discovered 4 exits: [*Mat x2] / [*Min] / [*Sub]) -10/Subcaves History --------- Turn | Location | Event 8 | -11/Scrapyard | Discovered new exit (range 16) 56 | -11/Scrapyard | Entered Materials 165 | -10/Materials | Discovered new exit (range 5) 311 | -10/Materials | Build established: Mutant 399 | -10/Materials | Discovered new exit (range 8) 601 | -10/Materials | Discovered new exit (range 5) 675 | -10/Materials | Discovered new exit (range 8) 697 | -10/Materials | Entered Subcaves 698 | -10/Subcaves | Approached by a straggling Scientist 777 | -10/Subcaves | Core integrity fell below 50% 847 | -10/Subcaves | Learned location of Zion (-7) 847 | -10/Subcaves | Met a Zionite searching for "candidates" 849 | -10/Subcaves | Lost 3 parts (1p1n1w) 1103 | -10/Subcaves | Build established: Scavenger-Mutant 1190 | -10/Subcaves | Core integrity fell below 20% 1210 | -10/Subcaves | Shifting Twisted Machinery released Sub. Monowheel 1223 | -10/Subcaves | Shifting Twisted Machinery released Mak. Axe 1262 | -10/Subcaves | Destroyed by Shrapnel Trap Last Messages --------------- 01191_ Particle Gun destroyed. 01195_ ZC-Y71(R) destroyed. 01202_ LO-XTG(R) suffers critical hit (Meltdown). 01202_ Disposable Heat Sink melted. 01202_ Sub. Optics melted. 01206_ UD-BE2(O) collects matter. Sub. Monowheel falls loose from the Twisted Machinery. 01210_ UD-BE2(O) collects matter. 01214_ Acquired Wheel. 01216_ Acquired Com. Wheel. Mak. Axe falls loose from the Twisted Machinery. 01231_ UD-BE2(O) puts together Spk. Treads. 01231_ Dropped Wheel. 01232_ Acquired Mak. Axe. 01257_ Acquired 5 matter. 01262_ Triggered Shrapnel Trap. 01262_ An expanding cloud of shrapnel blasts out in all directions. Map ----- +----------------------------------------------------+ | ?????????????????????????????????????????????????? | | ?????????????????????????????????????????????????? | | ?????????????????????????????????????????????????? | | ?????????????????????????????????????????????????? | | ?????????????????????????????????????????????????? | | ?????????????????????????????????????????????????? | | ?????????????????????????????????????????????????? | | ?????????????????????????????????????????????????? | | ?????????????????????????????????????????????????? | | ?????????????????????????????????????????????????? | | ?????????????????????????????????????????????????? | | ?????????????????????????????????????????????????? | | ?????????????????????????????????????????????????? | | ?????????????????????????????????????????????????? | | ?????????????????????????????????????????????????? | | ??????????????????????????????????###????? ??????? | | ?????????????????????????????????? ##??? ??????? | | ?????????????????????????????????# ### ???????? | | ????????????????????????????????? ?????????? | | ????????????????????????????????? ??????????? | | ??????????????????????????????### #???????????? | | ??????????????????????????????# #????????????? | | ?????????????????????????????## #?????? ?????? | | ??????????????????????????#### #??## ?????? | | ??????????????????????# ### ## ## # ??????? | | ??????????????????????# @ """ #??????? | | ????????????????# # ###" ""#### ??????? | | ????????????????##^O ^ ###?## ""#??? ##????? | | ?????????????????## ????# ""#??? " #?### # | | ??????????????????# ????# #### " ## ## | | ????????????????? ## ????##" ##" #" # | | ????????????????## ??### ????#""" """ ??? | | ?????????????????#?????# ???### #=""" ## ??? | | ???????????????????????# ?????#### #?????? | | ???????????????????????### %???????# ##?????? | | ??????????????????????????##???????# ##??????? | | ???????????????????????????????????# " #???????? | | ???????????????????????????????????# " " ##??????? | | ???????????????????????????????????## """=#??????? | | ????????????????????????????????????## "" #??????? | | ??????????????????????????????????##?##=" #??????? | | ?????????????????????????????????##""#"!&##??????? | | ????????????????????????????????##""""& #???????? | | ???????????????????????????????#""" ""& *###?????? | | ???????????????????????????????# #### && ##????? | | ???????????????????????????????## "####&[& ##???? | | ????????????????????????????????#"" "#&* ##??? | | ????????????????????????????????#" #??? | | ????????????????????????????????## #??? | | ?????????????????????????????????# #??? | +----------------------------------------------------+ Best States ------------- Heat Dissipation 35 Energy Generation 15 Energy Capacity 250 Matter Stores 300 Matter Capacity 300 Sight Range 16 Terrain Scan Density 10 Evasion (%) 55 Recoil Reduction 2 Item Schematics ----------------- None Robot Schematics ------------------ None Fabricated ------------ Nothing Repaired ---------- Nothing Alien Tech Used ----------------- None Achievements -------------- None Challenges ------------ None Game ------ Seed CryofiberDisruptorMesh Manual? 0 Play Time 00:12:34 Cumulative 261.1 hours Start 2025.05.24 @ 18:15:51 End 2025.05.24 @ 18:26:18 Sessions 1 Manual Loads 0 Difficulty Rogue Special Mode None Game No. 393 Rogue 393 Adventurer 0 Explorer 0 Win Type - Total 1 Types 1/0/0/0/0/0/0/0/0/0 Lore% 63 Gallery% 62 Achievement% 43 Wizard Run 0 Options --------- Layout 1 ASCII 0 Keyboard 0 Movement Mouse Keybinds 0 Fullscreen 2 Font 24/Smallcaps Map View 50x35 Zoom Use 0% Tactical HUD 1 Map Filters NONE Filters NONE Steam 1 RUN: 84e0b5f3-682b-4514-9297-fda1e27638a4